[Event "7th Sharjah Masters 2024"]
[Site "Sharjah"]
[Date "2024.05.17"]
[Round "4.7"]
[White "Sarana, Alexey"]
[Black "Vakhidov, Jakhongir"]
[Result "1-0"]
[ECO "E73"]
[WhiteElo "2706"]
[BlackElo "2599"]
[Annotator "TA"]
[PlyCount "103"]
[EventDate "2024.05.13"]
[EventType "swiss"]
[EventCountry "UAE"]
[SourceTitle "playchess.com"]
[Source "ChessBase"]
[SourceQuality "1"]
[TimeControl "5400+30"]

{[%evp 27,103,218,199,230,226,219,278,237,235,237,243,254,254,239,270,254,245,252,243,250,336,335,324,252,256,264,264,264,264,270,279,273,293,291,312,287,352,332,335,343,460,391,435,435,727,751,747,776,649,550,523,546,479,493,626,487,831,754,946,941,862,862,1757,1809,1670,1403,3839,3839,29957,1263,778,763,29982,29983,29985,29986,29986,29985]} 1. d4 {[%emt 1:31:00]} Nf6 {[%emt 1:31:00]} 2. c4 g6 {[%emt 0:00:30]} 3. Nc3 {[%emt 0:01:00]} Bg7 {[%emt 0:00:30]} 4. e4 {[%emt 0:00:30]} d6 {[%emt 0:00:30]} 5. Be2 {[%emt 0:00:30]} O-O {[%emt 0:00:30]} 6. Be3 {[%emt 0:00:30]} a5 {[%emt 0:00:30] E73: King's Indian: Averbakh Variation without 6...c5.} 7. Nf3 {[%emt 0:00:30]} Ng4 {[%emt 0:00:30]} 8. Bg5 {[%emt 0:00:30]} h6 {[%emt 0:00:30]} 9. Bh4 {[%emt 0:00:30]} Nf6 {[%emt 0:00:30]} 10. h3 {[%emt 0:00:30]} Nc6 {[%emt 0:00:30]} 11. d5 $5 $146 {[%emt 0:00:30][%mdl 8] An interesting novelty.} ({Predecessor:} 11. Qd2 g5 12. Bg3 e5 13. dxe5 dxe5 14. Qxd8 Rxd8 15. Nxe5 Nd4 16. Bd1 Re8 17. Ba4 {½-½ Parkhov,Y (2467)-Sokolovsky,Y (2431) ISR-chT Israel 2023 (10.4)}) 11... Nb4 {[%emt 0:00:30]} 12. Qd2 {[%emt 0:00:30]} Nd7 {[%emt 0:00:30]} 13. a3 {[%emt 0:00:30]} Nc5 {[%emt 0:00:30]} 14. axb4 {[%emt 0:00:30]} Nb3 {[%emt 0:00:30]} 15. Qd1 {[%emt 0:00:30]} Nxa1 {[%emt 0:00:30] [#]} 16. b5 $1 {[%emt 0:00:30]} c5 {[%emt 0:00:30]} 17. Qxa1 {[%emt 0:00:30]} f5 {[%emt 0:00:30]} 18. exf5 {[%emt 0:00:30]} g5 {[%emt 0:00:30]} 19. Bg3 {[%emt 0:00:30]} a4 {[%emt 0:00:30]} 20. Qa3 {[%emt 0:00:30]} (20. Nxa4 $2 Qa5+ 21. Kf1 Qxa4 $19) 20... Qa5 {[%emt 0:00:30]} 21. f6 {[%emt 0:00:30]} Bxf6 {[%emt 0:00:30]} 22. Bd3 {[%emt 0:00:30]} Qb4 {[%emt 0:00:30]} 23. Kd2 {[%emt 0:00:30]} g4 {[%emt 0:00:30]} 24. hxg4 {[%emt 0:00:30]} Bxg4 25. Kc2 {[%emt 0:00:30]} (25. Rxh6 $6 Bxf3 26. Rg6+ (26. gxf3 $2 Bg5+ 27. Kc2 Bxh6 $19) 26... Kf7 $18) 25... Bxf3 {[%emt 0:01:00]} 26. gxf3 {[%emt 0:00:30]} Bxc3 {[%emt 0:00:30]} 27. Qxc3 {[%emt 0:00:30]} Qxc3+ {[%emt 0:00:30]} 28. Kxc3 {[%emt 0:00:30]} Rxf3 {[%emt 0:00:30]} 29. Ra1 {[%emt 0:00:30]} (29. Rxh6 $2 a3 30. Rh1 axb2 31. Kxb2 Rxd3 $19) 29... Kg7 {[%emt 0:00:30]} 30. Kd2 {[%emt 0:00:30]} h5 {[%emt 0:00:30]} 31. Ra3 {[%emt 0:00:30]} Kh6 {[%emt 0:00:30]} 32. Ke2 {[%emt 0:00:30]} Raf8 {[%emt 0:00:30] [#]} 33. Ra1 $1 {[%emt 0:00:30]} (33. Rxa4 Kg5 $16) 33... R3f6 {[%emt 0:00:30]} 34. f4 {[%emt 0:00:30]} ({Don't do} 34. Rxa4 Kg5 35. Ra1 h4) 34... Rg8 {[%emt 0:00:30]} 35. Kf3 {[%emt 0:00:30]} Rff8 {[%emt 0:00:30]} (35... Rf7 $142 36. Rxa4 Rfg7) 36. Re1 $18 {[%emt 0:00:30]} Rf7 {[%emt 0:00:30]} 37. Re6+ {[%emt 0:00:30]} Kg7 {[%emt 0:00:30]} 38. Be1 {[%emt 0:00:30]} Kf8 {[%emt 0:00:30]} 39. Rh6 {[%emt 0:00:30]} Rfg7 {[%emt 0:00:30]} 40. Bf2 {[%emt 0:00:30]} ({But not} 40. Rxh5 Rg1 $18) 40... Ke8 {[%emt 0:00:30]} 41. Rxh5 {[%emt 0:00:30]} Kd7 {[%emt 0:00:30]} (41... a3 $142) 42. b6 $18 {[%emt 0:00:30]} Kc8 {[%emt 0:00:30]} 43. Bc2 {[%emt 0:00:30]} Rf8 {[%emt 0:00:30]} 44. Bxa4 {[%emt 0:00:30]} Rgg8 {[%emt 0:00:30]} 45. Rh7 {[%emt 0:00:30]} Rh8 {[%emt 0:00:30]} 46. Rxe7 {[%emt 0:00:30]} Rh3+ {[%emt 0:00:30]} 47. Bg3 {[%emt 0:00:30]} Rh1 {[%emt 0:00:30]} 48. Bd7+ {[%emt 0:00:30]} (48. f5 $142 Rh3 49. Kg4 Rh6 50. Kg5 Rh1 51. Bxd6 (51. f6 Rf1 $18) 51... Rg1+ 52. Kf4 Rf1+ 53. Ke4) 48... Kd8 $18 {[%emt 0:00:30]} 49. Rg7 {[%emt 0:00:30]} Rf1+ {[%emt 0:00:30]} 50. Kg2 {[%emt 0:00:30]} Rh8 {[%emt 0:00:30]} 51. Be6 {[%emt 0:00:30]} Rb1 {[%emt 0:00:30]} 52. Rxb7 {[%emt 0:00:30]} 1-0

[Event "7th Sharjah Masters 2024"]
[Site "Sharjah"]
[Date "2024.05.17"]
[Round "4.8"]
[White "Nesterov, Arseniy"]
[Black "Fedoseev, Vladimir"]
[Result "0-1"]
[ECO "D37"]
[WhiteElo "2590"]
[BlackElo "2702"]
[Annotator "TA"]
[PlyCount "150"]
[EventDate "2024.05.13"]
[EventType "swiss"]
[EventCountry "UAE"]
[SourceTitle "playchess.com"]
[Source "ChessBase"]
[SourceQuality "1"]
[TimeControl "5400+30"]

{[%evp 74,150,0,0,0,0,0,0,0,0,0,0,0,0,0,0,0,0,0,0,8,0,0,0,0,0,0,0,0,0,0,0,0,0,0,0,0,0,0,0,0,0,0,0,0,0,0,0,0,0,0,0,0,-312,-312,-564,-564,-723,-725,-12821,-5728,-29968,-29970,-29969,-29972,-29971,-29972,-29972,-29973,-29976,-29978,-29979,-29980,-29980,-29981,-29981,-29982,-29980,-29982]} 1. d4 {[%emt 1:31:00]} d5 {[%emt 1:31:00]} 2. c4 {[%emt 0:00:30]} e6 {[%emt 0:00:30]} 3. Nf3 {[%emt 0:00:30]} a6 {[%emt 0:00:30]} 4. cxd5 {[%emt 0:00:30]} exd5 5. Nc3 {[%emt 0:00:30]} Nf6 {[%emt 0:01:00]} 6. Bg5 {[%emt 0:00:30]} Be6 {[%emt 0:00:30]} 7. e3 {[%emt 0:00:30]} Nbd7 {[%emt 0:00:30]} 8. Bd3 {[%emt 0:00:30]} Bd6 {[%emt 0:00:30]} 9. O-O {[%emt 0:00:30]} c6 {[%emt 0:00:30]} 10. Bf4 {[%emt 0:00:30]} Bxf4 {[%emt 0:00:30]} 11. exf4 {[%emt 0:00:30]} g6 {[%emt 0:00:30]} 12. Re1 {[%emt 0:00:30]} O-O {[%emt 0:00:30]} 13. Qc2 {[%emt 0:00:30]} Bg4 {[%emt 0:00:30]} 14. Ne5 {[%emt 0:00:30]} Nxe5 {[%emt 0:00:30]} 15. fxe5 {[%emt 0:00:30]} Nh5 {[%emt 0:00:30]} 16. Qd2 {[%emt 0:00:30]} f6 {[%emt 0:00:30]} 17. f3 {[%emt 0:00:30]} Be6 {[%emt 0:00:30]} 18. Na4 {[%emt 0:00:30]} Qc7 {[%emt 0:00:30]} 19. Nc5 {[%emt 0:00:30]} Rae8 {[%emt 0:00:30]} 20. Qh6 {[%emt 0:00:30]} Ng7 {[%emt 0:00:30]} 21. exf6 {[%emt 0:00:30]} Rxf6 {[%emt 0:00:30]} 22. Re5 {[%emt 0:00:30]} a5 {[%emt 0:00:30]} 23. Qh4 {[%emt 0:00:30]} Rff8 {[%emt 0:00:30]} 24. Rae1 {[%emt 0:00:30]} Bc8 {[%emt 0:00:30]} 25. Qg5 {[%emt 0:00:30]} Rxe5 {[%emt 0:00:30]} 26. Rxe5 {[%emt 0:00:30]} Qd6 {[%emt 0:00:30]} 27. Qe7 {[%emt 0:00:30]} Qxe7 {[%emt 0:00:30]} 28. Rxe7 {[%emt 0:00:30]} b6 {[%emt 0:00:30]} 29. Na4 {[%emt 0:00:30]} Rf4 {[%emt 0:00:30]} 30. Nxb6 {[%emt 0:00:30]} Be6 {[%emt 0:00:30]} 31. Na4 {[%emt 0:00:30]} Rxd4 {[%emt 0:00:30]} 32. Nc5 {[%emt 0:00:30]} Bf5 {[%emt 0:00:30]} 33. Ba6 {[%emt 0:00:30]} Kf8 {[%emt 0:00:30]} 34. Re2 {[%emt 0:00:30]} Kf7 {[%emt 0:00:30]} 35. Kf2 {[%emt 0:00:30]} Rb4 {[%emt 0:00:30]} 36. g4 {[%emt 0:00:30]} Ne6 {[%emt 0:00:30]} 37. Nb7 {[%emt 0:00:30]} Bd3 {[%emt 0:00:30]} 38. Nd6+ {[%emt 0:00:30]} (38. Bxd3 Rxb7 39. Kg3 a4 $17) 38... Ke7 39. Nc8+ {[%emt 0:00:30]} (39. Bxd3 $2 Kxd6 40. Rc2 c5 $19) 39... Kd8 {[%emt 0:01:00]} 40. Bxd3 {[%emt 0:00:30]} (40. Rxe6 $2 Rxb2+ (40... Bxa6 $2 41. Na7 $19) 41. Ke1 Bxa6 $19) 40... Nf4 {[%emt 0:00:30]} (40... Kxc8 $2 41. Rxe6 Rxb2+ 42. Re2 $18) 41. Na7 $1 {[%emt 0:00:30]} Nxd3+ {[%emt 0:00:30]} 42. Ke3 Ne5 {[%emt 0:00:30]} (42... Nxb2 $2 43. Nxc6+ Kc7 44. Nxb4 Nc4+ 45. Kd4 axb4 46. Kxd5 Nb6+ 47. Kc5 $18) 43. Kf2 $1 Rb7 {[%emt 0:00:30]} 44. Rxe5 {[%emt 0:01:30]} Rxa7 45. Re6 {[%emt 0:00:30]} Rb7 {[%emt 0:01:00]} 46. b3 {[%emt 0:00:30]} Rc7 {[%emt 0:00:30]} 47. h4 {[%emt 0:00:30]} Kd7 {[%emt 0:00:30]} 48. Rf6 {[%emt 0:00:30]} Ke7 {[%emt 0:00:30]} 49. g5 {[%emt 0:00:30]} a4 {[%emt 0:00:30]} 50. b4 {[%emt 0:00:30]} c5 {[%emt 0:00:30]} 51. bxc5 {[%emt 0:00:30]} Rxc5 52. Ra6 {[%emt 0:00:30]} Rc2+ {[%emt 0:01:00]} 53. Ke3 {[%emt 0:00:30]} Rxa2 {[%emt 0:00:30]} 54. Kd4 {[%emt 0:00:30]} a3 {[%emt 0:00:30]} 55. Kxd5 {[%emt 0:00:30]} Rd2+ {[%emt 0:00:30]} 56. Ke4 {[%emt 0:00:30]} a2 {[%emt 0:00:30]} 57. f4 {[%emt 0:00:30]} Rf2 {[%emt 0:00:30]} 58. Ke3 {[%emt 0:00:30]} Rh2 {[%emt 0:00:30]} 59. Kf3 {[%emt 0:00:30]} Kd7 {[%emt 0:00:30]} 60. Kg4 {[%emt 0:00:30]} Rg2+ {[%emt 0:00:30]} 61. Kf3 {[%emt 0:00:30]} Rc2 {[%emt 0:00:30]} 62. Kg4 {[%emt 0:00:30]} Kc7 {[%emt 0:00:30]} 63. h5 $2 {[%emt 0:00:30][%mdl 8192]} (63. Kf3 $11 {and White is okay.}) 63... Kb7 $1 $19 {[%emt 0:00:30]} 64. Ra3 $2 {[%emt 0:00:30]} (64. Ra4 Kb6 65. Ra3) 64... Kb6 $19 {[%emt 0:00:30]} 65. Ra8 {[%emt 0:00:30]} Kb5 {[%emt 0:00:30]} 66. Ra7 {[%emt 0:00:30] [#]} Kb4 $1 {[%emt 0:00:30]} 67. Rb7+ {[%emt 0:00:30]} Kc3 {[%emt 0:00:30]} 68. Ra7 {[%emt 0:00:30]} Kb2 69. Rb7+ {[%emt 0:00:30]} Kc1 {[%emt 0:01:00]} 70. Ra7 {[%emt 0:00:30]} Kb1 {[%emt 0:00:30]} (70... gxh5+ 71. Kxh5 Kb2 72. Rb7+ Kc3 73. Rc7+ Kb4 74. Ra7 $11) 71. hxg6 {[%emt 0:00:30]} hxg6 {[%emt 0:00:30]} (71... a1=B $2 {loses.} 72. Rxa1+ (72. gxh7 Bd4 $18) (72. Rxh7 Rc6 $18) 72... Kxa1 73. gxh7 $18) 72. f5 {[%emt 0:00:30]} Rc4+ {[%emt 0:00:30]} ({Stronger than} 72... a1=B 73. fxg6 Rc8 74. Kh5 $11) 73. Kf3 gxf5 ({And not} 73... a1=B 74. Rb7+ (74. fxg6 Rc6 $11) 74... Kc2 75. fxg6 $11) 74. Rb7+ {[%emt 0:01:00]} Kc2 {[%emt 0:01:00]} 75. Ra7 {[%emt 0:00:30] [#]} Kb2 $1 0-1

[Event "7th Sharjah Masters 2024"]
[Site "Sharjah"]
[Date "2024.05.17"]
[Round "4.9"]
[White "Krzyzanowski, Marcin"]
[Black "Sindarov, Javokhir"]
[Result "0-1"]
[ECO "B45"]
[WhiteElo "2526"]
[BlackElo "2684"]
[Annotator "TA"]
[PlyCount "80"]
[EventDate "2024.05.13"]
[EventType "swiss"]
[EventCountry "UAE"]
[SourceTitle "playchess.com"]
[Source "ChessBase"]
[SourceQuality "1"]
[TimeControl "5400+30"]

{[%evp 12,80,0,0,2,0,24,0,0,0,25,17,39,26,14,12,7,11,17,6,5,-18,-20,-37,0,0,-8,-19,-16,-66,-67,-82,-65,-127,-77,-59,-55,-50,-44,-55,-29,-46,-44,-165,-157,-174,-170,-254,-229,-207,-172,-212,-204,-240,-237,-234,-218,-233,-245,-262,-255,-324,-325,-327,-324,-308,-336,-380,-381,-1118,-1118]} 1. e4 {[%emt 1:31:00]} c5 {[%emt 1:31:00]} 2. Nf3 {[%emt 0:00:30]} e6 {[%emt 0:00:30]} 3. d4 {[%emt 0:00:30]} cxd4 {[%emt 0:00:30]} 4. Nxd4 {[%emt 0:00:30]} Nf6 {[%emt 0:00:30]} 5. Nc3 {[%emt 0:00:30]} Nc6 {[%emt 0:00:30]} 6. a3 {[%emt 0:00:30]} Be7 {[%emt 0:00:30]} 7. Be3 {[%emt 0:00:30]} O-O {[%emt 0:00:30]} 8. Be2 {[%emt 0:00:30]} d6 {[%emt 0:00:30]} 9. Qd3 {[%emt 0:00:30]} a6 {[%emt 0:00:30] The position is equal.} 10. f4 {[%emt 0:00:30]} Qc7 {[%emt 0:00:30]} 11. O-O-O {[%emt 0:00:30]} e5 {[%emt 0:00:30]} 12. Nf3 {[%emt 0:00:30]} Rd8 {[%emt 0:00:30]} 13. Nd5 {[%emt 0:00:30]} Nxd5 {[%emt 0:00:30]} 14. exd5 {[%emt 0:00:30]} exf4 $1 {[%emt 0:00:30]} 15. Bxf4 {[%emt 0:00:30]} Ne5 {[%emt 0:00:30]} 16. Qb3 {[%emt 0:00:30]} Bf5 {[%emt 0:00:30]} 17. Nd4 {[%emt 0:00:30]} Be4 {[%emt 0:00:30]} 18. Rhe1 {[%emt 0:00:30]} Bg6 {[%emt 0:00:30]} 19. Kb1 {[%emt 0:00:30]} Rac8 {[%emt 0:00:30]} 20. Rd2 {[%emt 0:00:30]} (20. g4 $11) 20... Bf6 $15 {[%emt 0:00:30]} 21. Ka2 {[%emt 0:00:30]} Re8 {[%emt 0:00:30]} 22. Rc1 {[%emt 0:00:30]} ({White should play} 22. Bf1 $15) 22... b5 {[%emt 0:00:30]} (22... Be4 $142 23. g4 Ng6) 23. Nc6 $17 {[%emt 0:00:30]} Nxc6 {[%emt 0:00:30]} (23... Qd7 {simplifies} 24. g3 h6 25. Nxe5 Bxe5 26. Bxe5 Rxe5 27. Bd3 Bxd3 28. Qxd3 Qe8) 24. dxc6 {[%emt 0:00:30]} Qxc6 {[%emt 0:00:30]} 25. Bf3 {[%emt 0:00:30]} Qc4 {[%emt 0:00:30]} (25... Qc7 {simplifies} 26. Bxd6 Qc4 27. Qxc4 Rxc4 28. b3 Rcc8) 26. g3 {[%emt 0:00:30][%cal Ob3c4]} Be5 $36 {[%emt 0:00:30][%mdl 2048] Black is more active.} 27. Bd5 {[%emt 0:00:30] [#] Now White is beyond hope.} ({White should try} 27. Bxe5 $15 Qxb3+ (27... Rxe5 28. Qxc4 Rxc4 29. b3 $17) 28. Kxb3 dxe5 (28... Rxe5 29. Bb7 $11) 29. c4 (29. Bb7 Rb8 $17)) 27... Bxf4 $1 $19 {[%emt 0:00:30]} 28. gxf4 {[%emt 0:00:30]} (28. Bxc4 $2 {too greedy.} Bxd2 29. Bd3 Bxc1 $19) 28... Qxf4 {[%emt 0:00:30]} 29. Rcd1 {[%emt 0:00:30]} (29. Qb4 {was worth a try.} Qxb4 30. axb4) 29... Rc7 {[%emt 0:00:30]} 30. Rg2 {[%emt 0:00:30]} Kh8 {[%emt 0:00:30]} 31. c3 {[%emt 0:00:30]} Re5 {[%emt 0:00:30]} 32. Qb4 {[%emt 0:00:30] [#]} Qxb4 {[%emt 0:00:30]} 33. axb4 {[%emt 0:00:30]} f5 {[%emt 0:00:30][%cal Oe5d5]} 34. Bb3 {[%emt 0:00:30]} Rd7 {[%emt 0:00:30]} 35. Rd4 {[%emt 0:00:30][%cal Og2g6] Rxg6! would now be deadly.} d5 {[%emt 0:00:30]} 36. Rgd2 {[%emt 0:00:30]} Bf7 {[%emt 0:00:30]} 37. c4 {[%emt 0:00:30]} bxc4 {[%emt 0:00:30]} 38. Bxc4 {[%emt 0:00:30]} Rd6 {[%emt 0:00:30]} ({Worse is} 38... dxc4 39. Rxd7 Bg8 (39... c3+ $2 40. Rxf7 h6 41. bxc3 $18) 40. Kb1 $14) 39. Bd3 {[%emt 0:00:30]} g5 {[%emt 0:00:30]} 40. Rc2 $2 {[%emt 0:00:30] [#]} (40. Ka3) 40... Re4 $1 {[%emt 0:00:30] Weighted Error Value: White=0.36/Black=0.09 (flawless) .  Mistake:       	White=5     	Black=1      Inaccurate:     	---       	Black=2      OK:         	White=6     	Black=15     Strong:       	---       	Black=2      Brilliant:      	---       	Black=1} 0-1

[Event "7th Sharjah Masters 2024"]
[Site "Sharjah"]
[Date "2024.05.17"]
[Round "4.10"]
[White "Ter-Sahakyan, Samvel"]
[Black "Muradli, Mahammad"]
[Result "0-1"]
[ECO "B90"]
[WhiteElo "2652"]
[BlackElo "2561"]
[Annotator "TA"]
[PlyCount "80"]
[EventDate "2024.05.13"]
[EventType "swiss"]
[EventCountry "UAE"]
[SourceTitle "playchess.com"]
[Source "ChessBase"]
[SourceQuality "1"]
[TimeControl "5400+30"]

{[%evp 26,80,-17,-20,-33,-38,-32,-39,-42,-39,-47,-33,-33,-22,5,20,3,0,0,-34,0,0,6,14,3,0,82,55,134,-22,-45,-134,-120,-174,-71,-124,-132,-187,-187,-244,0,0,132,-388,-393,-479,-491,-495,-522,-496,-526,-6690,-29972,-29972,-29973,-29991,-29992]} 1. e4 {[%emt 0:00:14]} c5 {[%emt 0:03:26]} 2. Nf3 {[%emt 0:00:08]} d6 {[%emt 0:00:06]} 3. d4 {[%emt 0:00:16]} cxd4 {[%emt 0:00:06]} 4. Nxd4 {[%emt 0:00:04]} Nf6 {[%emt 0:00:12]} 5. Nc3 {[%emt 0:00:06]} a6 {[%emt 0:00:12]} 6. Be3 {[%emt 0:01:10]} e5 {[%emt 0:00:13]} 7. Nb3 {[%emt 0:00:06]} Be6 {[%emt 0:00:17]} 8. h3 {[%emt 0:00:36] B90: Sicilian Najdorf: Unusual White 6th moves, 6 Be3 Ng4 and 6 Be3 e5.} Be7 {[%emt 0:07:30]} 9. Qf3 {[%emt 0:01:41]} O-O {[%emt 0:01:06]} 10. O-O-O {[%emt 0:11:35]} b5 {[%emt 0:00:51]} 11. g4 {[%emt 0:02:34]} b4 {[%emt 0:00:37]} 12. Nd5 {[%emt 0:00:06]} Nxd5 {[%emt 0:00:30]} 13. exd5 {[%emt 0:00:06]} Bc8 {[%emt 0:00:50]} 14. Kb1 {[%emt 0:04:57]} a5 {[%emt 0:03:25]} 15. Nd2 {[%emt 0:00:49]} a4 {[%emt 0:10:11]} 16. Ne4 {[%emt 0:04:57]} Qc7 {[%emt 0:06:11]} 17. g5 $146 {[%emt 0:12:46]} ({Predecessor:} 17. Bd3 Nd7 18. Rc1 Ba6 19. Qe2 Bxd3 20. Qxd3 Rfb8 21. Rhg1 Nf6 22. f3 g6 23. Nxf6+ Bxf6 {½-½ Glaser,K (2333)-Portych,V (2265) CZE-ch sf55 email 2021}) 17... b3 {[%emt 0:11:09]} 18. cxb3 {[%emt 0:02:36]} axb3 {[%emt 0:01:33]} 19. Rc1 $1 {[%emt 0:00:57]} Qa5 {[%emt 0:11:36]} 20. a3 {[%emt 0:00:57]} Nd7 $1 {[%emt 0:01:16]} 21. Rg1 {[%emt 0:18:59]} Kh8 {[%emt 0:03:52]} 22. Nf6 {[%emt 0:17:03]} g6 {[%emt 0:12:21]} (22... gxf6 $2 23. Bd3 Rg8 (23... fxg5 24. Qf5 $18) 24. gxf6 (24. Qf5 Rg6 $15) 24... Nxf6 25. Rxg8+ Kxg8 26. Bh6 $18) (22... Nxf6 $5 23. gxf6 Bxf6 $11) 23. Bd3 {[%emt 0:01:22]} Bxf6 $1 {[%emt 0:04:29]} 24. gxf6 {[%emt 0:00:17]} Ba6 {[%emt 0:03:28]} 25. Be4 {[%emt 0:01:48]} Rfc8 {[%emt 0:03:18]} (25... Qa4 $1 $11 {remains equal.}) 26. Rc6 $16 {[%emt 0:07:47]} Bb5 {[%emt 0:00:30]} ({Black should play} 26... Qa4 $1 $14) 27. Rxc8+ $2 {[%emt 0:02:21]} (27. Rxd6 Qa4 $14) (27. Rgc1 $1 $16 Qd8 (27... Bxc6 $2 28. dxc6 Nb6 29. h4 $18) 28. h4 (28. Rxd6 Rxc1+ 29. Bxc1 Qc7 $11)) 27... Rxc8 $11 {[%emt 0:00:02]} 28. h4 {[%emt 0:02:40]} (28. Ka1 $15) 28... Qa6 $17 {[%emt 0:01:23]} 29. Ka1 {[%emt 0:01:20]} (29. Bh6 $17 Rc4 30. Ka1) 29... Bd3 {[%emt 0:02:56]} (29... Be2 $19 {and Black stays clearly on top.} 30. Qg2 Nxf6) 30. Bxd3 {[%emt 0:02:38]} (30. Bh6 $142 Bxe4 31. Qxe4) 30... Qxd3 $17 {[%emt 0:00:02]} 31. h5 {[%emt 0:00:10] [#]} (31. Qd1 $17 Qc4 32. Rg4) 31... Rc2 $1 $19 {[%emt 0:04:10]} 32. Rd1 {[%emt 0:00:30]} (32. Rb1 $142 Qf5 33. Qxf5 gxf5 34. Rc1 Rxc1+ (34... Nxf6 35. Kb1 $17) 35. Bxc1 Nxf6 36. h6) 32... Qc4 $2 {[%emt 0:03:32]} ({Black should try} 32... Rxf2 $1 $19 33. Rxd3 Rxf3 34. Rxb3 gxh5 (34... Nxf6 $2 {loses.} 35. h6 $18)) 33. Rb1 $1 $11 {[%emt 0:00:50]} Kg8 {[%emt 0:00:14] [#]} (33... Qa6 $11 {keeps the balance.} 34. Rd1 Kg8) 34. h6 $2 {[%emt 0:01:24][%mdl 8192]} (34. hxg6 $1 $16 {is necessary to keep the advantage.} hxg6 35. Bg5) 34... Kf8 $19 {[%emt 0:00:58]} 35. Bg5 {[%emt 0:01:22]} Ke8 {[%emt 0:01:02]} 36. Qe3 {[%emt 0:00:07]} Nc5 {[%emt 0:00:53]} (36... Qxd5 $2 37. Qa7 $19) 37. Qe1 {[%emt 0:00:30]} Qa4 {[%emt 0:02:29]} (37... Qxd5 $2 38. Qa5 $19) 38. Rd1 {[%emt 0:00:07]} Ne4 {[%emt 0:00:13]} 39. Bc1 {[%emt 0:01:17]} Qc4 {[%emt 0:00:47]} 40. f4 {[%emt 0:00:26]} Nf2 {[%emt 0:00:18]} (40... Nxf6 41. fxe5 Nxd5 42. exd6+ Kd7 43. Qg1 $17) 0-1